bitfinex/quotes_SOLUSD_20250308
["timestamp","ask_amount","ask_price","bid_price","bid_amount"]
[1741436311845,34.51704204,138.01,137.96,34.51704204]
[1741436312047,66.7385909,138.03,137.97,34.51704204]
[1741436312234,25.92454886,138.03,137.97,34.51704204]
[1741436312957,0.03,138.03,137.99,34.51704204]
[1741436313951,0.03,138.03,138.0,34.51704204]
[1741436315236,0.03,138.03,137.99,34.51704204]
[1741436315658,0.03,138.03,138.0,34.51704204]
[1741436315856,0.03,138.03,137.99,34.51704204]
[1741436317057,0.03,138.03,138.0,34.51704204]
[1741436317259,0.03,138.03,138.02,34.51704204]
[1741436317752,0.03,138.03,138.02,36.15374204]
[1741436318662,0.03,138.03,138.02,43.39904204]
[1741436318949,0.03,138.03,138.02,86.79904204]
[1741436320962,53.1666909,138.14,138.05,20.0]
[1741436321133,53.1666909,138.14,138.08,34.51704204]
[1741436321335,53.1666909,138.14,138.05,63.4]
[1741436321336,34.51704204,138.13,138.07,34.51704204]
[1741436321551,34.51704204,138.11,138.06,34.51704204]
[1741436321751,34.51704204,138.12,138.06,34.51704204]
[1741436322647,34.51704204,138.11,138.05,34.51704204]
[1741436322845,7.2411,138.1,138.02,58.6429]
[1741436323048,7.2411,138.1,138.05,34.51704204]
[1741436323550,7.2407,138.11,138.06,34.51704204]
[1741436324541,34.51704204,138.1,138.05,20.0]
[1741436325043,53.1666909,138.12,138.06,34.51704204]
[1741436325243,60.4068909,138.12,138.06,34.51704204]
[1741436325568,41.75644204,138.14,138.08,34.51704204]
[1741436326154,34.51704204,138.13,138.07,34.51704204]
[1741436326457,7.2394,138.14,138.09,34.51704204]
[1741436327372,41.75644204,138.14,138.08,34.51704204]
[1741436327748,126.21708774,138.16,138.1,34.51704204]
[1741436327949,9.4000457,138.16,138.11,34.51704204]
[1741436328365,2.1616457,138.16,138.12,34.51704204]
[1741436328569,2.1616457,138.16,138.14,34.51704204]
[1741436329145,2.1616457,138.16,138.12,34.51704204]
[1741436329345,9.3996457,138.16,138.12,34.51704204]
[1741436329758,2.1616457,138.16,138.12,34.51704204]
[1741436330045,0.03,138.14,138.12,34.51704204]
[1741436330464,0.03,138.14,138.1,57.601]
[1741436330465,0.03,138.14,138.13,34.51704204]
[1741436330965,0.03,138.14,138.13,41.75654204]
[1741436331271,0.03,138.14,138.13,86.13284204]
[1741436331645,0.03,138.14,138.13,42.73284204]
[1741436332645,0.03,138.14,138.13,34.51704204]
[1741436333658,0.03,138.14,138.13,41.75654204]
[1741436333850,2.1616457,138.16,138.15,20.0]
[1741436334054,2.1616457,138.16,138.15,97.91704204]
[1741436334248,2.1616457,138.16,138.15,131.6859909]
[1741436334549,2.1616457,138.16,138.15,132.77115783]
[1741436334745,0.03,138.17,138.16,41.2383543]
[1741436334959,14.3122,138.27,138.2,20.0]
[1741436335163,7.2617,138.28,138.23,34.51704204]
[1741436335363,7.2617,138.28,138.26,34.51704204]
[1741436335364,0.03,138.28,138.26,34.51704204]
[1741436335582,0.03,138.28,138.27,34.51704204]
[1741436336657,0.03,138.28,138.23,1.5153]
[1741436336966,0.03,138.28,138.24,34.51704204]
[1741436337167,0.03,138.28,138.26,34.51704204]
[1741436337369,0.03,138.28,138.23,1.5153]
[1741436337370,0.03,138.28,138.27,34.51704204]
[1741436337552,0.03,138.28,138.27,73.85539634]
[1741436337749,0.03,138.28,138.27,92.5050452]
[1741436338258,41.74344204,138.39,138.31,20.0]
[1741436338568,34.51704204,138.38,138.32,34.51704204]
[1741436338771,7.2264,138.39,138.3,39.3383543]
[1741436338772,34.51704204,138.36,138.3,73.85539634]
[1741436338976,34.51704204,138.33,138.28,6.504]
[1741436339158,34.51704204,138.32,138.26,39.3383543]
[1741436339477,34.51704204,138.31,138.25,42.15704204]
[1741436339675,34.51704204,138.32,138.26,34.51704204]
[1741436339864,18.64964886,138.34,138.27,34.51704204]
[1741436340063,34.51704204,138.32,138.25,81.49539634]
[1741436340259,34.51704204,138.29,138.23,36.03234204]
[1741436340768,34.51704204,138.31,138.24,34.51704204]
[1741436340970,34.51704204,138.3,138.24,34.51704204]
[1741436341174,7.2311,138.29,138.23,36.03234204]
[1741436341552,34.51704204,138.28,138.23,1.5153]
[1741436341752,34.54704204,138.28,138.23,1.5153]
[1741436341992,34.54704204,138.28,138.22,34.51704204]
[1741436342155,0.03,138.28,138.23,54.51704204]
[1741436342475,0.03,138.28,138.23,20.0]
[1741436342651,0.03,138.28,138.24,34.51704204]
[1741436342853,0.03,138.28,138.22,34.51704204]
[1741436343155,34.51704204,138.27,138.2,14.124]
[1741436343461,41.74964204,138.27,138.2,48.64104204]
[1741436343865,34.51704204,138.26,138.2,48.64104204]
[1741436344369,100.94964886,138.26,138.16,6.2579]
[1741436344579,34.51704204,138.2,138.14,36.07744204]
[1741436345159,34.51704204,138.19,138.14,1.5604]
[1741436345481,34.51704204,138.17,138.12,6.1882]
[1741436345686,34.51704204,138.16,138.09,36.17944204]
[1741436345875,34.51704204,138.18,138.11,34.51704204]
[1741436346060,34.51704204,138.18,138.09,8.9038]
[1741436346061,34.51704204,138.17,138.1,34.51704204]
[1741436346265,34.51704204,138.14,138.07,6.1882]
[1741436346493,34.51704204,138.15,138.09,34.51704204]
[1741436346668,34.51704204,138.17,138.1,34.51704204]
[1741436347004,34.51704204,138.12,138.06,34.51704204]
[1741436347293,34.51704204,138.1,138.04,1.6624]
[1741436347496,34.51704204,138.08,138.03,0.033]
[1741436347656,7.2408,138.11,138.03,0.033]
[1741436347657,34.51704204,138.1,138.03,34.55004204]
[1741436347857,42.25704204,138.12,138.06,34.51704204]
[1741436348061,7.74,138.12,138.08,34.51704204]
[1741436348280,41.75584204,138.15,138.08,34.51704204]
[1741436348778,41.75584204,138.15,138.09,34.51704204]
[1741436348967,7.2388,138.15,138.09,34.51704204]
[1741436349169,41.75584204,138.15,138.09,34.51704204]
[1741436349375,34.51704204,138.13,138.07,34.51704204]
[1741436349684,34.51704204,138.13,138.06,34.51704204]
[1741436349980,34.51704204,138.13,138.04,54.3422543]
[1741436349981,34.51704204,138.13,138.07,34.51704204]
[1741436350166,34.51704204,138.09,138.03,34.55004204]
[1741436350372,34.51704204,138.1,138.03,41.79464204]
[1741436350870,34.51704204,138.09,138.03,34.55004204]
[1741436351074,34.51704204,138.08,138.03,0.033]
[1741436351298,34.51704204,138.07,138.03,0.033]
[1741436351840,34.51704204,138.08,138.03,0.033]
[1741436352001,7.2411,138.1,138.03,34.55004204]
[1741436352168,41.75814204,138.1,138.03,34.55004204]
[1741436352362,34.51704204,138.09,138.03,34.55004204]
[1741436352797,7.2411,138.1,138.03,34.55004204]
[1741436352798,34.51704204,138.1,138.04,34.51704204]
[1741436353097,7.76,138.12,138.08,34.51704204]
[1741436353300,34.51704204,138.14,138.08,34.51704204]
[1741436353499,34.51704204,138.15,138.08,34.51704204]
[1741436353804,34.51704204,138.11,138.05,34.51704204]
[1741436354005,18.64964886,138.14,138.03,34.55004204]
[1741436354006,34.51704204,138.09,138.03,34.55004204]
[1741436354310,34.51704204,138.08,138.03,0.033]
[1741436355097,34.51704204,138.09,138.03,34.55004204]
[1741436355309,7.76,138.11,138.03,34.55004204]
[1741436355310,34.51704204,138.08,138.03,0.033]
[1741436355492,42.27704204,138.11,138.04,34.51704204]
[1741436355703,49.51774204,138.11,138.04,34.51704204]
[1741436356888,34.51704204,138.1,138.03,34.55004204]
[1741436357096,42.27704204,138.11,138.05,34.51704204]
[1741436357419,7.76,138.11,138.05,34.51704204]
[1741436357718,41.75774204,138.11,138.05,34.51704204]
[1741436357890,41.75774204,138.11,138.04,34.51704204]
[1741436358091,34.51704204,138.08,138.03,0.033]
[1741436358828,116.81704204,138.1,138.04,34.51704204]
[1741436358990,41.75704204,138.12,138.06,34.51704204]
[1741436359184,34.51704204,138.1,138.04,34.51704204]
[1741436359398,34.51704204,138.09,138.03,73.88839634]
[1741436359722,34.51704204,138.09,138.03,34.55004204]
[1741436360811,34.51704204,138.09,138.03,0.033]
[1741436360982,41.75894204,138.09,138.03,0.033]
[1741436361505,41.75884204,138.09,138.03,0.033]
[1741436361708,34.51704204,138.04,138.03,0.033]
[1741436362219,34.51704204,138.06,138.03,0.033]
[1741436363020,34.51704204,138.05,138.03,0.033]
[1741436363221,34.51704204,138.06,138.03,0.033]
[1741436363424,34.51704204,138.09,138.03,34.55004204]
[1741436363601,41.75854204,138.1,138.03,34.55004204]
[1741436364091,34.51704204,138.09,138.03,0.033]
[1741436364419,34.51704204,138.09,138.02,34.51704204]
[1741436364630,34.51704204,138.09,138.03,7.2448]
[1741436364806,124.61704204,138.11,138.04,34.51704204]
[1741436365189,34.51704204,138.09,138.03,34.51704204]
[1741436365416,34.51704204,138.08,138.03,0.033]
[1741436365613,34.51704204,138.1,138.04,34.51704204]
[1741436365820,124.61704204,138.11,138.04,34.51704204]
[1741436366406,82.3,138.11,138.05,34.51704204]
[1741436366611,34.51704204,138.12,138.06,7.2432]
[1741436367328,34.51704204,138.1,138.04,6.27]
[1741436368586,34.51704204,138.1,138.04,13.5141]
[1741436368786,34.51704204,138.11,138.04,48.03114204]
[1741436369109,82.3,138.13,138.04,48.03114204]
[1741436369292,34.51704204,138.11,138.04,48.03114204]
[1741436370022,41.75794204,138.11,138.04,48.03114204]
[1741436370192,41.75724204,138.12,138.05,34.51704204]
[1741436370634,34.51704204,138.11,138.05,34.51704204]
[1741436371643,41.75784204,138.11,138.05,34.51704204]
[1741436371953,34.51704204,138.1,138.04,6.27]
[1741436372163,34.51704204,138.09,138.04,6.27]
[1741436372364,34.51704204,138.07,138.03,0.033]
[1741436372661,34.51704204,138.08,138.03,0.033]
[1741436372963,82.3,138.09,138.04,34.51704204]
[1741436373126,82.3,138.09,138.05,34.51704204]
[1741436373461,82.3,138.09,138.06,34.51704204]
[1741436373762,82.3,138.09,138.06,41.76004204]
[1741436373938,82.3,138.09,138.06,7.243]
[1741436374141,82.3,138.09,138.05,34.51704204]
[1741436374539,82.3,138.09,138.05,41.76064204]
[1741436375054,82.3,138.09,138.05,34.51704204]
[1741436375266,82.3,138.09,138.04,41.76114204]
[1741436376537,82.3,138.09,138.03,0.033]
[1741436376730,82.3,138.09,138.04,34.51704204]
[1741436377056,82.3,138.09,138.05,34.51704204]
[1741436377233,41.75774204,138.11,138.05,34.51704204]
[1741436377549,7.2407,138.11,138.05,34.51704204]
[1741436378363,0.03,138.12,138.07,34.51704204]
[1741436378543,0.03,138.12,138.09,34.51704204]
[1741436378858,0.03,138.12,138.1,34.51704204]
[1741436379950,0.03,138.12,138.11,34.51704204]
[1741436380346,0.03,138.12,138.11,41.75764204]
[1741436381557,82.3,138.21,138.11,115.61303838]
[1741436381733,34.51704204,138.23,138.17,34.51704204]
[1741436381934,41.75154204,138.23,138.17,34.51704204]
[1741436382134,34.51704204,138.22,138.16,34.51704204]
[1741436382537,7.2345,138.23,138.16,34.51704204]
[1741436382737,34.51704204,138.22,138.16,34.51704204]
[1741436383176,7.2353,138.21,138.16,34.51704204]
[1741436384056,34.51704204,138.18,138.13,34.51704204]
[1741436384650,34.51704204,138.19,138.13,34.51704204]
[1741436385176,41.75394204,138.18,138.12,1.5692]
[1741436385473,34.51704204,138.16,138.12,1.5692]
[1741436385645,34.51704204,138.17,138.12,1.5692]
[1741436386146,7.2369,138.18,138.07,18.1063]
[1741436386147,34.51704204,138.15,138.08,7.6933]
[1741436386350,34.51704204,138.13,138.08,7.6933]
[1741436386534,34.51704204,138.14,138.08,42.21034204]
[1741436386738,34.51704204,138.15,138.08,42.21034204]
[1741436386980,34.51704204,138.14,138.08,42.21034204]
[1741436387139,82.3,138.16,138.08,42.21034204]
[1741436387346,124.05514204,138.16,138.09,34.51704204]
[1741436388268,34.51704204,138.18,138.12,34.51704204]
[1741436388645,34.51704204,138.18,138.11,34.51704204]
[1741436389479,41.75394204,138.18,138.11,41.75724204]
[1741436389647,41.75394204,138.18,138.11,34.51704204]
[1741436390673,34.51704204,138.17,138.11,34.51704204]
[1741436390974,41.75494204,138.17,138.11,34.51704204]
[1741436391570,41.75404204,138.18,138.11,41.75754204]
[1741436391776,41.75404204,138.18,138.12,34.51704204]
[1741436391946,7.237,138.18,138.12,34.51704204]
[1741436392145,41.75404204,138.18,138.12,34.51704204]
[1741436392571,9.62489106,138.23,138.15,20.0]
[1741436392572,82.3,138.23,138.15,20.0]
[1741436392738,116.81704204,138.25,138.18,34.51704204]
[1741436392945,7.2339,138.24,138.18,34.51704204]
[1741436393144,41.75094204,138.24,138.18,34.51704204]
[1741436393360,41.75094204,138.24,138.17,34.51704204]
[1741436393571,34.51704204,138.23,138.17,34.51704204]
[1741436393775,41.75094204,138.24,138.17,34.51704204]
[1741436393979,34.51704204,138.23,138.16,34.51704204]
[1741436394876,7.2348,138.22,138.16,34.51704204]
[1741436395390,41.75184204,138.22,138.15,40.89034204]
[1741436395550,34.51704204,138.21,138.15,6.3733]
[1741436395885,34.51704204,138.2,138.15,6.3733]
[1741436397078,41.75324204,138.2,138.15,6.3733]
[1741436397280,41.75244204,138.21,138.14,7.2385]
[1741436397445,41.75244204,138.21,138.15,34.51704204]
[1741436397943,34.51704204,138.23,138.17,34.51704204]
[1741436398142,7.2337,138.24,138.17,34.51704204]
[1741436398385,34.51704204,138.25,138.19,34.51704204]
[1741436399451,34.51704204,138.24,138.18,41.75374204]
[1741436399668,34.51704204,138.23,138.17,80.36099634]
[1741436399870,34.51704204,138.22,138.17,39.3383543]
[1741436400175,34.51704204,138.2,138.14,34.51704204]
[1741436400376,34.51704204,138.19,138.13,42.60564204]
[1741436400886,34.51704204,138.19,138.13,8.0886]
[1741436401066,34.51704204,138.19,138.13,42.60564204]
[1741436401394,34.51704204,138.19,138.13,49.84494204]
[1741436401953,41.75344204,138.19,138.13,42.60564204]
[1741436402466,41.75344204,138.19,138.13,49.84504204]
[1741436402675,34.51704204,138.2,138.13,65.22740316]
[1741436402859,34.51704204,138.22,138.15,34.51704204]
[1741436403252,124.05134204,138.23,138.16,42.60564204]
[1741436403490,34.51704204,138.22,138.16,42.60564204]
[1741436403785,34.51704204,138.22,138.16,8.0886]
[1741436404075,34.51704204,138.19,138.13,36.14804204]
[1741436404292,34.51704204,138.18,138.13,1.631]
[1741436404463,34.51704204,138.17,138.13,1.631]
[1741436405083,34.51704204,138.15,138.12,6.5056]
[1741436405386,41.75624204,138.14,138.1,1.631]
[1741436405580,34.51704204,138.13,138.08,6.2997]
[1741436405887,34.51704204,138.12,138.06,36.14804204]
[1741436406055,34.51704204,138.12,138.06,1.631]
[1741436406257,34.51704204,138.11,138.06,1.631]
[1741436406684,25.3367,138.14,138.06,1.631]
[1741436406685,34.51704204,138.12,138.06,1.631]
[1741436406868,34.51704204,138.11,138.06,1.631]
[1741436407168,82.3,138.13,138.08,34.51704204]
[1741436407684,82.3,138.13,138.09,34.51704204]
[1741436407891,42.15704204,138.16,138.1,34.51704204]
[1741436408056,34.51704204,138.17,138.11,34.51704204]
[1741436408261,41.75454204,138.17,138.1,34.51704204]
[1741436408457,34.51704204,138.17,138.11,34.51704204]
[1741436408664,34.51704204,138.18,138.12,34.51704204]
[1741436408867,34.51704204,138.18,138.11,34.51704204]
[1741436409168,34.51704204,138.17,138.1,73.85539634]
[1741436409374,34.51704204,138.16,138.1,73.85539634]
[1741436409690,41.75554204,138.15,138.1,39.3383543]
[1741436409898,34.51704204,138.14,138.1,39.3383543]
[1741436410186,34.51704204,138.13,138.08,7.64]
[1741436410358,34.51704204,138.13,138.07,73.85539634]
[1741436410558,34.51704204,138.12,138.07,39.3383543]
[1741436411182,34.51704204,138.13,138.07,81.09789634]
[1741436411382,42.15704204,138.15,138.09,34.51704204]
[1741436411895,34.51704204,138.15,138.09,34.51704204]
[1741436412094,34.51704204,138.16,138.1,34.51704204]
[1741436412289,34.51704204,138.13,138.08,39.3383543]
[1741436412471,34.51704204,138.13,138.07,41.75964204]
[1741436412789,34.51704204,138.12,138.06,82.72949634]
[1741436413568,82.3,138.05,138.03,0.033]
[1741436413800,184.88793294,138.04,137.94,11.23397398]
[1741436413996,34.51704204,138.02,137.96,34.51704204]
[1741436414500,82.3,138.03,137.94,11.23397398]
[1741436414501,82.3,138.03,137.95,34.51704204]
[1741436414684,34.51704204,138.05,137.98,73.88839634]
[1741436414874,34.51704204,138.06,138.0,34.51704204]
[1741436415194,34.51704204,138.07,138.0,34.51704204]
[1741436415384,88.4667,138.12,138.02,34.51704204]
[1741436415571,34.51704204,138.08,138.01,39.3383543]
[1741436415771,34.51704204,138.09,138.03,34.51704204]
[1741436415968,34.51704204,138.1,138.03,34.51704204]
[1741436416170,116.81704204,138.11,138.05,34.51704204]
[1741436416411,34.51704204,138.11,138.05,34.51704204]
[1741436416776,156.84,138.16,138.06,6.1251]
[1741436416975,34.51704204,138.15,138.09,34.51704204]
[1741436417509,34.51704204,138.12,138.06,87.66049634]
[1741436417797,34.51704204,138.12,138.06,48.32214204]
[1741436417970,34.51704204,138.12,138.06,13.8051]
[1741436418169,82.3,138.17,138.06,13.8051]
[1741436418170,82.3,138.17,138.08,34.51704204]
[1741436418411,34.51704204,138.16,138.1,34.51704204]
[1741436418706,34.51704204,138.17,138.11,34.51704204]
[1741436419070,34.51704204,138.15,138.09,34.51704204]
[1741436419376,34.51704204,138.15,138.08,73.85539634]
[1741436419589,34.51704204,138.18,138.09,34.51704204]
[1741436419787,34.51704204,138.15,138.09,73.85539634]
[1741436419984,34.51704204,138.16,138.1,34.51704204]
[1741436420896,34.51704204,138.17,138.11,34.51704204]
[1741436421803,34.54704204,138.19,138.13,34.51704204]
[1741436422103,34.54704204,138.19,138.12,54.51704204]
[1741436422104,34.51704204,138.18,138.12,54.51704204]
[1741436422802,34.51704204,138.18,138.12,61.75704204]
[1741436423405,0.03,138.19,138.14,36.11084204]
[1741436423599,0.03,138.19,138.15,6.3967]
[1741436423905,0.03,138.19,138.17,34.51704204]
[1741436424082,0.03,138.19,138.16,81.09299634]
[1741436424282,0.03,138.19,138.16,46.5759543]
[1741436424600,0.03,138.19,138.16,81.09299634]
[1741436424899,0.03,138.19,138.17,34.51704204]
[1741436425316,0.03,138.19,138.18,34.51704204]
[1741436425805,0.03,138.19,138.18,73.85539634]
[1741436425976,0.03,138.19,138.18,81.09229634]
[1741436426903,0.03,138.19,138.18,99.7419452]
[1741436427430,0.03,138.19,138.18,81.09229634]
[1741436428911,0.03,138.19,138.18,39.3383543]
[1741436429312,0.03,138.19,138.18,46.5752543]
[1741436429635,0.03,138.19,138.18,99.7419452]
[1741436430119,0.03,138.26,138.19,18.64964886]
[1741436430324,34.51704204,138.25,138.19,92.5050452]
[1741436430913,34.54704204,138.26,138.2,34.51704204]
[1741436431296,34.51704204,138.25,138.19,92.5050452]
[1741436431490,34.51704204,138.25,138.2,7.2358]
[1741436431899,34.54704204,138.26,138.2,41.75284204]
[1741436432100,34.51704204,138.23,138.19,39.3383543]
[1741436432398,34.51704204,138.24,138.18,41.75394204]
[1741436433117,34.51704204,138.22,138.17,7.2373]
[1741436433299,34.51704204,138.21,138.17,7.2373]
[1741436433503,34.51704204,138.23,138.17,41.75434204]
[1741436433718,34.51704204,138.25,138.19,34.51704204]
[1741436433900,34.51704204,138.24,138.18,34.51704204]
[1741436434305,34.51704204,138.23,138.17,99.18629634]
[1741436435100,34.51704204,138.22,138.17,46.5756543]
[1741436435911,34.51704204,138.23,138.17,81.09269634]
[1741436436118,34.51704204,138.23,138.17,99.18629634]
[1741436436319,34.51704204,138.21,138.17,46.5756543]
[1741436437326,34.51704204,138.2,138.17,7.2373]
[1741436437525,34.51704204,138.18,138.14,1.5938]
[1741436437821,34.51704204,138.18,138.15,7.2383]
[1741436439124,34.51704204,138.17,138.14,1.5938]
[1741436439328,34.51704204,138.17,138.14,8.8326]
[1741436439709,34.51704204,138.18,138.14,8.8326]
[1741436440129,34.51704204,138.2,138.14,61.44714204]
[1741436440431,34.51704204,138.22,138.15,34.51704204]
[1741436440635,34.51704204,138.21,138.15,73.85539634]
[1741436440811,34.51704204,138.21,138.15,39.3383543]
[1741436441436,82.3,138.24,138.16,34.51704204]
[1741436441737,34.51704204,138.22,138.16,34.51704204]
[1741436441933,34.51704204,138.22,138.17,25.331]
[1741436442833,89.99,138.26,138.17,25.331]
[1741436442834,34.51704204,138.23,138.17,59.84804204]
[1741436443018,34.51704204,138.23,138.17,25.331]
[1741436443726,34.51704204,138.23,138.17,59.84804204]
[1741436445044,34.51704204,138.19,138.17,7.2374]
[1741436445204,34.51704204,138.18,138.14,19.6902]
[1741436445410,34.51704204,138.18,138.15,7.2385]
[1741436445913,34.51704204,138.17,138.14,7.2388]
[1741436446114,7.6,138.21,138.12,7.24]
[1741436446344,34.51704204,138.17,138.12,7.24]
[1741436447014,34.51704204,138.16,138.12,7.24]
[1741436447221,34.51704204,138.15,138.12,7.24]
[1741436447932,34.51704204,138.16,138.12,7.24]
[1741436448106,34.51704204,138.15,138.11,6.1851]
[1741436448442,34.51704204,138.18,138.08,7.2421]
[1741436448443,34.51704204,138.12,138.08,7.2421]
[1741436448613,34.51704204,138.12,138.07,6.307]
[1741436448809,34.51704204,138.13,138.07,6.307]
[1741436449024,34.51704204,138.13,138.07,13.5496]
[1741436449226,34.51704204,138.12,138.07,13.5496]
[1741436449426,34.51704204,138.12,138.07,6.307]
[1741436449633,34.51704204,138.11,138.07,6.307]
[1741436450235,34.51704204,138.08,138.06,1.5673]
[1741436450807,7.6,138.15,138.06,1.5673]
[1741436451012,34.51704204,138.13,138.07,34.51704204]
[1741436451239,34.51704204,138.12,138.06,43.32744204]
[1741436452018,34.51704204,138.13,138.07,34.51704204]
[1741436452216,34.51704204,138.13,138.06,48.1487543]
[1741436452217,34.51704204,138.11,138.06,40.9056543]
[1741436453146,34.51704204,138.13,138.07,34.51704204]
[1741436453718,34.51704204,138.14,138.08,34.51704204]
[1741436454929,34.51704204,138.12,138.06,82.66569634]
[1741436455133,34.51704204,138.11,138.06,48.1486543]
[1741436455322,34.51704204,138.12,138.06,48.1486543]
[1741436455524,34.51704204,138.12,138.06,82.66569634]
[1741436455719,34.51704204,138.13,138.06,82.66569634]
[1741436456057,34.51704204,138.12,138.06,43.32734204]
[1741436456422,34.51704204,138.1,138.06,1.5673]
[1741436457542,34.51704204,138.13,138.07,34.51704204]
[1741436457754,34.51704204,138.14,138.08,34.51704204]
[1741436458324,34.51704204,138.12,138.07,39.3383543]
[1741436459450,34.51704204,138.09,138.06,1.6003]
[1741436460151,34.51704204,138.08,138.06,0.033]
[1741436460323,34.51704204,138.07,138.06,0.033]
[1741436460520,34.51704204,138.08,138.06,0.033]
[1741436460822,34.51704204,138.13,138.07,41.12454204]
[1741436461149,34.51704204,138.15,138.08,1.5092]
[1741436461353,34.51704204,138.16,138.1,41.75764204]
[1741436461653,34.51704204,138.15,138.1,7.2406]
[1741436462153,34.51704204,138.13,138.08,50.2512]
[1741436462335,34.51704204,138.13,138.08,8.7512]
[1741436462536,34.51704204,138.15,138.09,34.51704204]
[1741436462930,82.3,138.17,138.1,34.51704204]
[1741436463131,34.51704204,138.15,138.09,34.51704204]
[1741436463430,34.51704204,138.13,138.08,43.0092]
[1741436463631,34.51704204,138.12,138.08,1.5092]
[1741436464148,34.51704204,138.11,138.08,1.5092]
[1741436464338,34.51704204,138.09,138.06,0.033]
[1741436465364,34.51704204,138.11,138.06,0.033]
[1741436465564,82.3,138.13,138.06,0.033]
[1741436465565,116.81704204,138.13,138.07,34.51704204]
[1741436465743,34.51704204,138.13,138.07,34.51704204]
[1741436466949,34.51704204,138.14,138.08,34.51704204]
[1741436467440,34.51704204,138.14,138.09,7.2416]
[1741436467641,34.51704204,138.13,138.09,7.2416]
[1741436468040,34.51704204,138.12,138.07,14.7824]
[1741436468733,34.51704204,138.11,138.07,7.54]
[1741436468933,89.5386,138.15,138.06,41.533]
[1741436469150,34.51704204,138.13,138.07,34.51704204]
[1741436469455,34.51704204,138.1,138.06,41.533]
[1741436469637,34.51704204,138.1,138.06,0.033]
[1741436469840,34.51704204,138.12,138.06,60.4427909]
[1741436470045,34.51704204,138.14,138.08,34.51704204]
[1741436470250,34.51704204,138.16,138.1,34.51704204]
[1741436470438,34.51704204,138.17,138.12,1.6109]
[1741436470640,34.51704204,138.16,138.12,1.6109]
[1741436470948,82.3,138.2,138.09,60.14964886]
[1741436470949,34.51704204,138.14,138.09,41.5]
[1741436471151,82.3,138.17,138.1,34.51704204]
[1741436471343,34.51704204,138.16,138.1,34.51704204]
[1741436471545,34.51704204,138.16,138.11,7.2406]
[1741436471746,34.51704204,138.14,138.09,7.2415]
[1741436472348,34.51704204,138.16,138.1,34.51704204]
[1741436472550,34.51704204,138.13,138.08,22.4917]
[1741436472866,34.51704204,138.13,138.08,14.9517]
[1741436474539,34.51704204,138.14,138.08,49.46874204]
[1741436474754,34.51704204,138.14,138.09,34.51704204]
[1741436475254,34.51704204,138.14,138.08,49.46874204]
[1741436475963,34.51704204,138.13,138.08,7.7097]
[1741436476471,34.51704204,138.16,138.1,34.51704204]
[1741436476639,34.51704204,138.17,138.11,34.51704204]
[1741436476837,34.51704204,138.15,138.12,20.0]
[1741436477052,34.51704204,138.14,138.12,20.0]
[1741436477446,34.51704204,138.15,138.12,20.0]
[1741436478563,34.51704204,138.14,138.12,20.0]
[1741436478768,34.51704204,138.14,138.09,7.2416]
[1741436479139,34.51704204,138.15,138.09,41.75864204]
[1741436479477,34.51704204,138.16,138.1,34.51704204]
[1741436480339,34.51704204,138.16,138.11,7.2406]
[1741436482167,34.51704204,138.18,138.12,34.51704204]
[1741436482474,34.51704204,138.18,138.13,7.2395]
[1741436483767,0.03,138.19,138.14,36.07294204]
[1741436483977,0.03,138.19,138.15,6.4468]
[1741436484273,34.54704204,138.19,138.15,6.4468]
[1741436484981,0.03,138.19,138.15,6.4468]
[1741436485359,34.54704204,138.19,138.15,6.4468]
[1741436485577,34.51704204,138.18,138.15,6.4468]
[1741436485884,34.51704204,138.16,138.14,1.5559]
[1741436486051,34.51704204,138.15,138.12,6.0176]
[1741436486448,34.51704204,138.14,138.12,6.0176]
[1741436486668,34.51704204,138.15,138.12,6.0176]
[1741436487173,34.51704204,138.13,138.12,20.0]
[1741436487966,34.51704204,138.14,138.11,1.6003]
[1741436488173,34.51704204,138.12,138.09,6.0176]
[1741436488373,34.51704204,138.11,138.09,6.0176]
[1741436488574,34.51704204,138.1,138.08,1.6333]
[1741436488754,34.51704204,138.09,138.08,0.033]
[1741436489757,41.75864204,138.09,138.08,0.033]
[1741436489978,34.51704204,138.09,138.08,0.033]
[1741436490352,34.51704204,138.11,138.08,20.033]
[1741436490855,95.8894,138.15,138.09,20.0]
[1741436491059,34.51704204,138.13,138.08,0.033]
[1741436491258,34.51704204,138.13,138.09,6.4217]
[1741436491487,34.51704204,138.14,138.09,6.4217]
[1741436491776,34.51704204,138.14,138.1,7.2411]
[1741436491979,34.51704204,138.13,138.09,13.6633]